[Event "Titled Tuesday Blitz March 22 Late 2022"]
[White "Bok, Benjamin"]
[Black "Golubka, Petro"]
[WhiteFideId "1017063"]
[BlackFideId "14114224"]
[WhiteElo "2658"]
[BlackElo "2346"]
[Result "0-1"]
[Round "05"]
[TimeControl "180+1"]
[Date "2022.03.22"]
[WhiteClock "0:00:02"]
[BlackClock "0:00:23"]

1. d4 {[%clk 0:03:00]}  Nf6 {[%clk 0:02:40]} 2. c4 {[%clk 0:03:00]}  g6 {[%clk 0:02:40]} 3. g3 {[%clk 0:02:59]}  Bg7 {[%clk 0:02:40]} 4. Bg2 {[%clk 0:02:59]}  d5 {[%clk 0:02:39]} 5. Nf3 {[%clk 0:02:59]}  dxc4 {[%clk 0:02:39]} 6. Na3 {[%clk 0:02:58]}  O-O {[%clk 0:02:40]} 7. O-O {[%clk 0:02:57]}  c3 {[%clk 0:02:39]} 8. bxc3 {[%clk 0:02:58]}  c5 {[%clk 0:02:40]} 9. Bb2 {[%clk 0:02:57]}  Nc6 {[%clk 0:02:40]} 10. Re1 {[%clk 0:02:57]}  Bf5 {[%clk 0:02:38]} 11. d5 {[%clk 0:02:57]}  Na5 {[%clk 0:02:36]} 12. c4 {[%clk 0:02:51]}  Be4 {[%clk 0:02:33]} 13. Nd2 {[%clk 0:02:46]}  Bxg2 {[%clk 0:02:32]} 14. Kxg2 {[%clk 0:02:46]}  a6 {[%clk 0:02:30]} 15. e4 {[%clk 0:02:43]}  Ne8 {[%clk 0:02:22]} 16. Bxg7 {[%clk 0:02:38]}  Nxg7 {[%clk 0:02:23]} 17. Qc2 {[%clk 0:02:31]}  e6 {[%clk 0:02:21]} 18. Rab1 {[%clk 0:02:26]}  b5 {[%clk 0:02:18]} 19. Red1 {[%clk 0:02:19]}  b4 {[%clk 0:02:17]} 20. Nb3 {[%clk 0:01:52]}  Nxb3 {[%clk 0:02:16]} 21. Qxb3 {[%clk 0:01:38]}  bxa3 {[%clk 0:02:15]} 22. dxe6 {[%clk 0:01:29]}  Qf6 {[%clk 0:02:13]} 23. exf7+ {[%clk 0:01:27]}  Qxf7 {[%clk 0:02:13]} 24. f4 {[%clk 0:01:16]}  Ne6 {[%clk 0:02:08]} 25. Qxa3 {[%clk 0:01:14]}  Rab8 {[%clk 0:01:53]} 26. Rxb8 {[%clk 0:01:09]}  Rxb8 {[%clk 0:01:54]} 27. Qxa6 {[%clk 0:01:08]}  Rb2+ {[%clk 0:01:37]} 28. Kh1 {[%clk 0:01:02]}  Nd4 {[%clk 0:01:22]} 29. Rd3 {[%clk 0:00:31]}  Qe7 {[%clk 0:01:15]} 30. Qa8+ {[%clk 0:00:24]}  Kg7 {[%clk 0:01:14]} 31. Qd5 {[%clk 0:00:16]}  h5 {[%clk 0:01:07]} 32. a4 {[%clk 0:00:04]}  Ra2 {[%clk 0:00:27]} 33. a5 {[%clk 0:00:03]}  Qc7 {[%clk 0:00:25]} 34. a6 {[%clk 0:00:02]}  Qb6 {[%clk 0:00:23]} 0-1


[Site "https://www.chess.com"]

[Event "Titled Tuesday Blitz March 22 Late 2022"]
[White "Broca Jimenez, Fernando"]
[Black "Cramling Bellon, Anna"]
[WhiteFideId "5104742"]
[BlackFideId "32009232"]
[WhiteElo "2062"]
[BlackElo "1905"]
[Result "1-0"]
[Round "05"]
[TimeControl "180+1"]
[Date "2022.03.22"]
[WhiteClock "0:00:15"]
[BlackClock "0:00:01"]

1. e4 {[%clk 0:03:00]}  c5 {[%clk 0:02:58]} 2. Nf3 {[%clk 0:03:00]}  Nc6 {[%clk 0:02:52]} 3. d4 {[%clk 0:02:56]}  cxd4 {[%clk 0:02:53]} 4. Nxd4 {[%clk 0:02:56]}  g6 {[%clk 0:02:52]} 5. c4 {[%clk 0:02:50]}  Bg7 {[%clk 0:02:48]} 6. Be3 {[%clk 0:02:50]}  d6 {[%clk 0:02:46]} 7. Nc3 {[%clk 0:02:49]}  Nf6 {[%clk 0:02:42]} 8. Be2 {[%clk 0:02:33]}  O-O {[%clk 0:02:36]} 9. O-O {[%clk 0:02:32]}  e5 {[%clk 0:02:28]} 10. Nc2 {[%clk 0:02:27]}  Be6 {[%clk 0:02:27]} 11. f3 {[%clk 0:02:22]}  Re8 {[%clk 0:02:26]} 12. b3 {[%clk 0:02:22]}  Rc8 {[%clk 0:02:22]} 13. Rc1 {[%clk 0:02:21]}  a6 {[%clk 0:02:20]} 14. Qd2 {[%clk 0:02:21]}  Qe7 {[%clk 0:02:03]} 15. Rfd1 {[%clk 0:02:19]}  Red8 {[%clk 0:02:00]} 16. Bg5 {[%clk 0:02:10]}  Qc7 {[%clk 0:01:36]} 17. Nd5 {[%clk 0:01:51]}  Bxd5 {[%clk 0:01:31]} 18. exd5 {[%clk 0:01:47]}  Ne7 {[%clk 0:01:18]} 19. g4 {[%clk 0:01:34]}  b5 {[%clk 0:00:58]} 20. Nb4 {[%clk 0:01:09]}  bxc4 {[%clk 0:00:50]} 21. Rxc4 {[%clk 0:00:50]}  Qb6+ {[%clk 0:00:40]} 22. Be3 {[%clk 0:00:49]}  Qa5 {[%clk 0:00:40]} 23. Nc6 {[%clk 0:00:38]}  Nxc6 {[%clk 0:00:32]} 24. dxc6 {[%clk 0:00:36]}  Qxd2 {[%clk 0:00:27]} 25. Bxd2 {[%clk 0:00:32]}  d5 {[%clk 0:00:28]} 26. Rc2 {[%clk 0:00:31]}  d4 {[%clk 0:00:27]} 27. Ba5 {[%clk 0:00:30]}  Rd6 {[%clk 0:00:24]} 28. c7 {[%clk 0:00:23]}  Nd5 {[%clk 0:00:24]} 29. Rdc1 {[%clk 0:00:20]}  Ne3 {[%clk 0:00:10]} 30. Rc6 {[%clk 0:00:20]}  Rd7 {[%clk 0:00:09]} 31. Bxa6 {[%clk 0:00:19]}  Rcxc7 {[%clk 0:00:02]} 32. Bxc7 {[%clk 0:00:18]}  Bf6 {[%clk 0:00:01]} 33. Bb6 {[%clk 0:00:17]}  d3 {[%clk 0:00:01]} 34. Bxe3 {[%clk 0:00:16]}  d2 {[%clk 0:00:01]} 35. Rd1 {[%clk 0:00:15]}  e4 {[%clk 0:00:01]} 36. Rc8+ {[%clk 0:00:15]} 1-0


[Site "https://www.chess.com"]

[Event "Titled Tuesday Blitz March 22 Late 2022"]
[White "Buchenau, Frank"]
[Black "Ezat, Mohamed"]
[WhiteFideId "4604350"]
[BlackFideId "10600906"]
[WhiteElo "2193"]
[BlackElo "2386"]
[Result "1/2-1/2"]
[Round "05"]
[TimeControl "180+1"]
[Date "2022.03.22"]
[WhiteClock "0:01:21"]
[BlackClock "0:02:06"]

1. e4 {[%clk 0:02:56]}  c6 {[%clk 0:02:57]} 2. Nf3 {[%clk 0:02:56]}  d5 {[%clk 0:02:58]} 3. Nc3 {[%clk 0:02:56]}  Bg4 {[%clk 0:02:57]} 4. d4 {[%clk 0:02:56]}  e6 {[%clk 0:02:55]} 5. Bd3 {[%clk 0:02:55]}  Bb4 {[%clk 0:02:54]} 6. O-O {[%clk 0:02:54]}  Nf6 {[%clk 0:02:53]} 7. e5 {[%clk 0:02:52]}  Nfd7 {[%clk 0:02:53]} 8. Ne2 {[%clk 0:02:40]}  Bxf3 {[%clk 0:02:52]} 9. gxf3 {[%clk 0:02:40]}  Qh4 {[%clk 0:02:50]} 10. f4 {[%clk 0:02:29]}  a6 {[%clk 0:02:28]} 11. f5 {[%clk 0:02:21]}  c5 {[%clk 0:02:23]} 12. c3 {[%clk 0:02:19]}  Ba5 {[%clk 0:02:23]} 13. fxe6 {[%clk 0:02:18]}  fxe6 {[%clk 0:02:22]} 14. Nf4 {[%clk 0:02:16]}  O-O {[%clk 0:02:18]} 15. Nxe6 {[%clk 0:02:04]}  Nc6 {[%clk 0:02:14]} 16. Bg5 {[%clk 0:01:57]}  Qh3 {[%clk 0:02:13]} 17. Nf4 {[%clk 0:01:41]}  Rxf4 {[%clk 0:02:07]} 18. Bxf4 {[%clk 0:01:42]}  cxd4 {[%clk 0:02:07]} 19. cxd4 {[%clk 0:01:35]}  Nxd4 {[%clk 0:02:07]} 20. Bxh7+ {[%clk 0:01:26]}  Kxh7 {[%clk 0:02:07]} 21. Qxd4 {[%clk 0:01:26]}  Qg4+ {[%clk 0:02:07]} 22. Kh1 {[%clk 0:01:23]}  Qf3+ {[%clk 0:02:07]} 23. Kg1 {[%clk 0:01:23]}  Qg4+ {[%clk 0:02:07]} 24. Kh1 {[%clk 0:01:22]}  Qf3+ {[%clk 0:02:08]} 25. Kg1 {[%clk 0:01:21]}  Qg4+ {[%clk 0:02:06]} 1/2-1/2


[Site "https://www.chess.com"]

[Event "Titled Tuesday Blitz March 22 Late 2022"]
[White "Chyngyz, Sultai"]
[Black "Rolfe, Warrick"]
[WhiteFideId "13803158"]
[BlackFideId "2603802"]
[WhiteElo "1365"]
[BlackElo "2558"]
[Result "0-1"]
[Round "05"]
[TimeControl "180+1"]
[Date "2022.03.22"]
[WhiteClock "0:00:01"]
[BlackClock "0:00:14"]

1. e4 {[%clk 0:03:00]}  c5 {[%clk 0:02:59]} 2. Nf3 {[%clk 0:02:53]}  Nc6 {[%clk 0:02:59]} 3. d4 {[%clk 0:02:48]}  cxd4 {[%clk 0:03:00]} 4. Nxd4 {[%clk 0:02:48]}  e5 {[%clk 0:03:01]} 5. Nb5 {[%clk 0:02:48]}  d6 {[%clk 0:03:01]} 6. N1c3 {[%clk 0:02:46]}  a6 {[%clk 0:03:01]} 7. Na3 {[%clk 0:02:45]}  b5 {[%clk 0:03:02]} 8. Nd5 {[%clk 0:02:45]}  Nge7 {[%clk 0:03:03]} 9. Be3 {[%clk 0:02:38]}  Nxd5 {[%clk 0:02:59]} 10. Qxd5 {[%clk 0:02:32]}  Bb7 {[%clk 0:02:59]} 11. c4 {[%clk 0:02:29]}  b4 {[%clk 0:02:48]} 12. Nc2 {[%clk 0:02:27]}  Qc7 {[%clk 0:02:47]} 13. Qd2 {[%clk 0:02:25]}  a5 {[%clk 0:02:41]} 14. Bd3 {[%clk 0:02:17]}  Be7 {[%clk 0:02:39]} 15. O-O {[%clk 0:02:17]}  O-O {[%clk 0:02:39]} 16. f4 {[%clk 0:02:14]}  exf4 {[%clk 0:02:36]} 17. Bxf4 {[%clk 0:02:15]}  Ne5 {[%clk 0:02:36]} 18. Nd4 {[%clk 0:02:12]}  Nxc4 {[%clk 0:02:14]} 19. Qc2 {[%clk 0:02:01]}  Qb6 {[%clk 0:01:57]} 20. Qxc4 {[%clk 0:01:47]}  Rac8 {[%clk 0:01:57]} 21. Qb5 {[%clk 0:01:41]}  Qxd4+ {[%clk 0:01:56]} 22. Kh1 {[%clk 0:01:40]}  Bc6 {[%clk 0:01:40]} 23. Qa6 {[%clk 0:01:26]}  Qxb2 {[%clk 0:01:37]} 24. Qxa5 {[%clk 0:01:23]}  f5 {[%clk 0:00:49]} 25. Rab1 {[%clk 0:01:19]}  Qd4 {[%clk 0:00:48]} 26. Ba6 {[%clk 0:01:02]}  Qxe4 {[%clk 0:00:47]} 27. Rb2 {[%clk 0:00:55]}  Bf6 {[%clk 0:00:41]} 28. Rbf2 {[%clk 0:00:26]}  Ra8 {[%clk 0:00:36]} 29. h3 {[%clk 0:00:20]}  Bb7 {[%clk 0:00:36]} 30. Bxb7 {[%clk 0:00:19]}  Rxa5 {[%clk 0:00:34]} 31. Bxe4 {[%clk 0:00:19]}  fxe4 {[%clk 0:00:35]} 32. Bxd6 {[%clk 0:00:19]}  Rfa8 {[%clk 0:00:32]} 33. Bxb4 {[%clk 0:00:19]}  Rxa2 {[%clk 0:00:33]} 34. Rxa2 {[%clk 0:00:17]}  Rxa2 {[%clk 0:00:34]} 35. Re1 {[%clk 0:00:18]}  Rb2 {[%clk 0:00:20]} 36. Rxe4 {[%clk 0:00:16]}  Kf7 {[%clk 0:00:20]} 37. Kh2 {[%clk 0:00:14]}  Kg6 {[%clk 0:00:20]} 38. Rg4+ {[%clk 0:00:13]}  Kf5 {[%clk 0:00:20]} 39. Bd6 {[%clk 0:00:13]}  h5 {[%clk 0:00:20]} 40. Rf4+ {[%clk 0:00:12]}  Ke6 {[%clk 0:00:20]} 41. Bc7 {[%clk 0:00:12]}  Rc2 {[%clk 0:00:20]} 42. Bb8 {[%clk 0:00:11]}  Rc8 {[%clk 0:00:19]} 43. Re4+ {[%clk 0:00:09]}  Kf5 {[%clk 0:00:19]} 44. Rf4+ {[%clk 0:00:08]}  Ke6 {[%clk 0:00:19]} 45. Re4+ {[%clk 0:00:08]}  Kd5 {[%clk 0:00:19]} 46. Rb4 {[%clk 0:00:07]}  Rxb8 {[%clk 0:00:19]} 47. Rxb8 {[%clk 0:00:07]}  Be5+ {[%clk 0:00:20]} 48. Kg1 {[%clk 0:00:08]}  Bxb8 {[%clk 0:00:21]} 49. Kf2 {[%clk 0:00:08]}  Ke4 {[%clk 0:00:21]} 50. g4 {[%clk 0:00:08]}  h4 {[%clk 0:00:21]} 51. Ke2 {[%clk 0:00:07]}  Ba7 {[%clk 0:00:20]} 52. g5 {[%clk 0:00:07]}  Kf4 {[%clk 0:00:20]} 53. g6 {[%clk 0:00:06]}  Kg3 {[%clk 0:00:20]} 54. Kd3 {[%clk 0:00:04]}  Kxh3 {[%clk 0:00:20]} 55. Ke4 {[%clk 0:00:05]}  Kg3 {[%clk 0:00:20]} 56. Kf5 {[%clk 0:00:06]}  h3 {[%clk 0:00:20]} 57. Ke6 {[%clk 0:00:07]}  h2 {[%clk 0:00:20]} 58. Kf7 {[%clk 0:00:08]}  Bd4 {[%clk 0:00:20]} 59. Kg8 {[%clk 0:00:02]}  h1=Q {[%clk 0:00:19]} 60. Kf7 {[%clk 0:00:03]}  Qd5+ {[%clk 0:00:19]} 61. Kf8 {[%clk 0:00:03]}  Bf6 {[%clk 0:00:16]} 62. Ke8 {[%clk 0:00:03]}  Qd8+ {[%clk 0:00:17]} 63. Kf7 {[%clk 0:00:02]}  Qe7+ {[%clk 0:00:16]} 64. Kg8 {[%clk 0:00:02]}  Qe4 {[%clk 0:00:16]} 65. Kf7 {[%clk 0:00:03]}  Kg4 {[%clk 0:00:16]} 66. Kg8 {[%clk 0:00:03]}  Qxg6 {[%clk 0:00:16]} 67. Kf8 {[%clk 0:00:03]}  Qh6 {[%clk 0:00:15]} 68. Kf7 {[%clk 0:00:03]}  Bb2 {[%clk 0:00:15]} 69. Kg8 {[%clk 0:00:03]}  Kf5 {[%clk 0:00:15]} 70. Kf7 {[%clk 0:00:03]}  g5 {[%clk 0:00:14]} 71. Kg8 {[%clk 0:00:01]}  Qg7# {[%clk 0:00:14]} 0-1


[Site "https://www.chess.com"]

[Event "Titled Tuesday Blitz March 22 Late 2022"]
[White "Clawitter, Craig"]
[Black "Bibasa, Bob"]
[WhiteFideId "2023105"]
[BlackFideId "10000240"]
[WhiteElo "2205"]
[BlackElo "2056"]
[Result "1-0"]
[Round "05"]
[TimeControl "180+1"]
[Date "2022.03.22"]
[WhiteClock "0:00:04"]
[BlackClock "0:01:34"]

1. e4 {[%clk 0:03:00]}  c5 {[%clk 0:03:00]} 2. Nf3 {[%clk 0:03:00]}  d6 {[%clk 0:03:00]} 3. d4 {[%clk 0:03:00]}  cxd4 {[%clk 0:03:01]} 4. Nxd4 {[%clk 0:03:00]}  Nf6 {[%clk 0:03:01]} 5. Nc3 {[%clk 0:03:00]}  a6 {[%clk 0:03:02]} 6. Be3 {[%clk 0:02:59]}  e5 {[%clk 0:03:02]} 7. Nb3 {[%clk 0:03:00]}  Be6 {[%clk 0:03:02]} 8. f3 {[%clk 0:03:01]}  Be7 {[%clk 0:03:02]} 9. Qd2 {[%clk 0:03:01]}  h5 {[%clk 0:03:02]} 10. Nd5 {[%clk 0:02:59]}  Nxd5 {[%clk 0:03:02]} 11. exd5 {[%clk 0:03:00]}  Bf5 {[%clk 0:03:03]} 12. Be2 {[%clk 0:02:53]}  Nd7 {[%clk 0:03:02]} 13. O-O {[%clk 0:02:51]}  O-O {[%clk 0:03:01]} 14. c4 {[%clk 0:02:39]}  a5 {[%clk 0:03:01]} 15. Rac1 {[%clk 0:02:35]}  a4 {[%clk 0:03:00]} 16. Na1 {[%clk 0:02:35]}  b6 {[%clk 0:02:59]} 17. Nc2 {[%clk 0:02:29]}  Nc5 {[%clk 0:02:43]} 18. Nb4 {[%clk 0:02:26]}  Qd7 {[%clk 0:02:41]} 19. Nc6 {[%clk 0:02:18]}  Bf6 {[%clk 0:02:42]} 20. Bxc5 {[%clk 0:02:04]}  bxc5 {[%clk 0:02:37]} 21. f4 {[%clk 0:02:05]}  exf4 {[%clk 0:02:27]} 22. Bxh5 {[%clk 0:01:31]}  Bg5 {[%clk 0:02:17]} 23. Rce1 {[%clk 0:01:13]}  Rae8 {[%clk 0:02:13]} 24. b4 {[%clk 0:00:39]}  axb3 {[%clk 0:02:09]} 25. axb3 {[%clk 0:00:39]}  g6 {[%clk 0:02:01]} 26. Bd1 {[%clk 0:00:32]}  Re3 {[%clk 0:02:01]} 27. Bc2 {[%clk 0:00:20]}  Bxc2 {[%clk 0:01:54]} 28. Qxc2 {[%clk 0:00:19]}  Rfe8 {[%clk 0:01:55]} 29. Rxe3 {[%clk 0:00:17]}  fxe3 {[%clk 0:01:56]} 30. Qd3 {[%clk 0:00:13]}  e2 {[%clk 0:01:55]} 31. Re1 {[%clk 0:00:12]}  Be3+ {[%clk 0:01:55]} 32. Kh1 {[%clk 0:00:11]}  Qg4 {[%clk 0:01:49]} 33. Qxe2 {[%clk 0:00:11]}  Qxe2 {[%clk 0:01:44]} 34. Rxe2 {[%clk 0:00:12]}  Kf8 {[%clk 0:01:44]} 35. g3 {[%clk 0:00:11]}  f5 {[%clk 0:01:42]} 36. Kg2 {[%clk 0:00:11]}  g5 {[%clk 0:01:42]} 37. Kf3 {[%clk 0:00:11]}  f4 {[%clk 0:01:43]} 38. gxf4 {[%clk 0:00:11]}  gxf4 {[%clk 0:01:43]} 39. b4 {[%clk 0:00:10]}  cxb4 {[%clk 0:01:42]} 40. Nxb4 {[%clk 0:00:10]}  Rb8 {[%clk 0:01:41]} 41. Nc2 {[%clk 0:00:10]}  Bc1 {[%clk 0:01:38]} 42. Nd4 {[%clk 0:00:09]}  Rb4 {[%clk 0:01:37]} 43. Ne6+ {[%clk 0:00:08]}  Kf7 {[%clk 0:01:37]} 44. Nxf4 {[%clk 0:00:06]}  Rxc4 {[%clk 0:01:37]} 45. Nd3 {[%clk 0:00:05]}  Rc3 {[%clk 0:01:37]} 46. Ke4 {[%clk 0:00:06]}  Bg5 {[%clk 0:01:36]} 47. Rf2+ {[%clk 0:00:06]}  Ke7 {[%clk 0:01:37]} 48. Rf5 {[%clk 0:00:06]}  Rc4+ {[%clk 0:01:37]} 49. Kf3 {[%clk 0:00:05]}  Bf6 {[%clk 0:01:37]} 50. Ke2 {[%clk 0:00:05]}  Bd4 {[%clk 0:01:36]} 51. h4 {[%clk 0:00:04]}  Rc2+ {[%clk 0:01:35]} 52. Kf3 {[%clk 0:00:04]}  Rh2 {[%clk 0:01:35]} 53. Kg4 {[%clk 0:00:05]}  Bf6 {[%clk 0:01:34]} 54. Rh5 {[%clk 0:00:03]}  Rg2+ {[%clk 0:01:34]} 55. Kf3 {[%clk 0:00:03]}  Rd2 {[%clk 0:01:33]} 56. Nf4 {[%clk 0:00:03]}  Be5 {[%clk 0:01:33]} 57. Ng6+ {[%clk 0:00:03]}  Kf6 {[%clk 0:01:33]} 58. Nxe5 {[%clk 0:00:03]}  dxe5 {[%clk 0:01:34]} 59. Rh6+ {[%clk 0:00:03]}  Kf5 {[%clk 0:01:34]} 60. d6 {[%clk 0:00:03]}  e4+ {[%clk 0:01:34]} 61. Ke3 {[%clk 0:00:03]}  Rd3+ {[%clk 0:01:35]} 62. Ke2 {[%clk 0:00:04]}  Rd5 {[%clk 0:01:33]} 63. Rh5+ {[%clk 0:00:04]}  Ke6 {[%clk 0:01:34]} 64. Rxd5 {[%clk 0:00:04]} 1-0


[Site "https://www.chess.com"]

[Event "Titled Tuesday Blitz March 22 Late 2022"]
[White "Costachi, Mihnea"]
[Black "Iskusnyh, Sergei"]
[WhiteFideId "1217518"]
[BlackFideId "4120027"]
[WhiteElo "2464"]
[BlackElo "2492"]
[Result "1-0"]
[Round "05"]
[TimeControl "180+1"]
[Date "2022.03.22"]
[WhiteClock "0:01:42"]
[BlackClock "0:00:05"]

1. d4 {[%clk 0:03:00]}  d5 {[%clk 0:02:59]} 2. c4 {[%clk 0:03:00]}  c6 {[%clk 0:02:59]} 3. Nf3 {[%clk 0:03:00]}  Nf6 {[%clk 0:02:59]} 4. Nc3 {[%clk 0:03:01]}  dxc4 {[%clk 0:02:58]} 5. e4 {[%clk 0:03:02]}  b5 {[%clk 0:02:54]} 6. Be2 {[%clk 0:03:02]}  Bb7 {[%clk 0:02:40]} 7. O-O {[%clk 0:03:02]}  e6 {[%clk 0:02:13]} 8. b3 {[%clk 0:03:01]}  Bb4 {[%clk 0:01:50]} 9. e5 {[%clk 0:02:49]}  Bxc3 {[%clk 0:01:44]} 10. exf6 {[%clk 0:02:49]}  Qxf6 {[%clk 0:01:36]} 11. Bg5 {[%clk 0:02:48]}  Qg6 {[%clk 0:01:32]} 12. Rc1 {[%clk 0:02:47]}  Bb2 {[%clk 0:01:24]} 13. bxc4 {[%clk 0:02:45]}  Ba3 {[%clk 0:01:25]} 14. Rb1 {[%clk 0:02:27]}  Bb2 {[%clk 0:01:26]} 15. Rxb2 {[%clk 0:02:25]}  O-O {[%clk 0:00:59]} 16. cxb5 {[%clk 0:02:17]}  cxb5 {[%clk 0:00:59]} 17. Rxb5 {[%clk 0:02:17]}  Bd5 {[%clk 0:00:58]} 18. Bf4 {[%clk 0:02:11]}  Nc6 {[%clk 0:00:57]} 19. Bg3 {[%clk 0:02:10]}  Rad8 {[%clk 0:00:49]} 20. Bd3 {[%clk 0:02:07]}  Qh5 {[%clk 0:00:48]} 21. Be4 {[%clk 0:01:59]}  Ne7 {[%clk 0:00:46]} 22. Bxd5 {[%clk 0:01:57]}  Nxd5 {[%clk 0:00:46]} 23. Ra5 {[%clk 0:01:50]}  Rb8 {[%clk 0:00:38]} 24. Bxb8 {[%clk 0:01:49]}  Rxb8 {[%clk 0:00:33]} 25. Ne5 {[%clk 0:01:46]}  Qg5 {[%clk 0:00:12]} 26. Qg4 {[%clk 0:01:44]}  Qd2 {[%clk 0:00:10]} 27. Rxa7 {[%clk 0:01:44]}  h6 {[%clk 0:00:09]} 28. Rxf7 {[%clk 0:01:44]}  g5 {[%clk 0:00:07]} 29. Qxe6 {[%clk 0:01:43]}  Rb1 {[%clk 0:00:05]} 30. Qe8# {[%clk 0:01:42]} 1-0


[Site "https://www.chess.com"]

[Event "Titled Tuesday Blitz March 22 Late 2022"]
[White "Deac, Bogdan-Daniel"]
[Black "Aravindh, Chithambaram VR."]
[WhiteFideId "1226380"]
[BlackFideId "5072786"]
[WhiteElo "2646"]
[BlackElo "2561"]
[Result "0-1"]
[Round "05"]
[TimeControl "180+1"]
[Date "2022.03.22"]
[WhiteClock "0:00:02"]
[BlackClock "0:00:04"]

1. d4 {[%clk 0:03:00]}  g6 {[%clk 0:02:59]} 2. e4 {[%clk 0:03:00]}  Bg7 {[%clk 0:03:00]} 3. Nc3 {[%clk 0:03:00]}  d6 {[%clk 0:03:00]} 4. Be3 {[%clk 0:03:01]}  a6 {[%clk 0:03:00]} 5. g4 {[%clk 0:03:01]}  b5 {[%clk 0:02:55]} 6. Bg2 {[%clk 0:03:01]}  Bb7 {[%clk 0:02:55]} 7. h4 {[%clk 0:03:01]}  h5 {[%clk 0:02:49]} 8. gxh5 {[%clk 0:02:56]}  Rxh5 {[%clk 0:02:49]} 9. Nge2 {[%clk 0:02:55]}  e6 {[%clk 0:02:48]} 10. Bg5 {[%clk 0:02:52]}  Bf6 {[%clk 0:02:43]} 11. Ng3 {[%clk 0:02:35]}  Rh8 {[%clk 0:02:42]} 12. Bxf6 {[%clk 0:02:30]}  Nxf6 {[%clk 0:02:42]} 13. h5 {[%clk 0:02:29]}  gxh5 {[%clk 0:02:33]} 14. Nxh5 {[%clk 0:02:23]}  Nxh5 {[%clk 0:02:27]} 15. Rxh5 {[%clk 0:02:22]}  Rg8 {[%clk 0:02:28]} 16. Qf3 {[%clk 0:01:55]}  Nd7 {[%clk 0:02:27]} 17. Qh3 {[%clk 0:01:28]}  Qf6 {[%clk 0:02:14]} 18. Ne2 {[%clk 0:01:21]}  Qg7 {[%clk 0:01:49]} 19. Bf3 {[%clk 0:01:15]}  Nf6 {[%clk 0:01:28]} 20. e5 {[%clk 0:00:58]}  Bxf3 {[%clk 0:00:35]} 21. Qxf3 {[%clk 0:00:57]}  Nd5 {[%clk 0:00:34]} 22. O-O-O {[%clk 0:00:47]}  Ke7 {[%clk 0:00:27]} 23. exd6+ {[%clk 0:00:36]}  cxd6 {[%clk 0:00:25]} 24. Nc3 {[%clk 0:00:24]}  Nxc3 {[%clk 0:00:20]} 25. Qb7+ {[%clk 0:00:23]}  Kf6 {[%clk 0:00:20]} 26. bxc3 {[%clk 0:00:23]}  Qg4 {[%clk 0:00:08]} 27. Rdh1 {[%clk 0:00:15]}  Raf8 {[%clk 0:00:05]} 28. Qc7 {[%clk 0:00:12]}  Qf4+ {[%clk 0:00:04]} 29. Kb2 {[%clk 0:00:12]}  Rg6 {[%clk 0:00:04]} 30. R5h3 {[%clk 0:00:08]}  b4 {[%clk 0:00:03]} 31. cxb4 {[%clk 0:00:05]}  Qxd4+ {[%clk 0:00:03]} 32. Kb3 {[%clk 0:00:05]}  Qd5+ {[%clk 0:00:04]} 33. Kb2 {[%clk 0:00:04]}  Qe5+ {[%clk 0:00:04]} 34. Ka3 {[%clk 0:00:04]}  a5 {[%clk 0:00:03]} 35. b5 {[%clk 0:00:03]}  Qd5 {[%clk 0:00:03]} 36. c4 {[%clk 0:00:03]}  Qd2 {[%clk 0:00:03]} 37. Rf3+ {[%clk 0:00:02]}  Kg7 {[%clk 0:00:04]} 38. Qb6 {[%clk 0:00:02]}  Qb4# {[%clk 0:00:04]} 0-1


[Site "https://www.chess.com"]

[Event "Titled Tuesday Blitz March 22 Late 2022"]
[White "Dolzhykova, Kateryna"]
[Black "Fajdetic, Hrvoje"]
[WhiteFideId "14113414"]
[BlackFideId "14501945"]
[WhiteElo "2184"]
[BlackElo "2172"]
[Result "0-1"]
[Round "05"]
[TimeControl "180+1"]
[Date "2022.03.22"]
[WhiteClock "0:00:05"]
[BlackClock "0:00:24"]

1. e4 {[%clk 0:03:00]}  e6 {[%clk 0:02:56]} 2. d3 {[%clk 0:03:00]}  c5 {[%clk 0:02:56]} 3. g3 {[%clk 0:03:00]}  Nc6 {[%clk 0:02:56]} 4. Bg2 {[%clk 0:02:59]}  d6 {[%clk 0:02:54]} 5. Nf3 {[%clk 0:02:58]}  e5 {[%clk 0:02:54]} 6. O-O {[%clk 0:02:57]}  g6 {[%clk 0:02:54]} 7. Nc3 {[%clk 0:02:56]}  Bg7 {[%clk 0:02:54]} 8. Nh4 {[%clk 0:02:55]}  Nge7 {[%clk 0:02:55]} 9. f4 {[%clk 0:02:55]}  f5 {[%clk 0:02:53]} 10. exf5 {[%clk 0:02:53]}  Nxf5 {[%clk 0:02:53]} 11. Nxf5 {[%clk 0:02:53]}  Bxf5 {[%clk 0:02:53]} 12. Bd5 {[%clk 0:02:50]}  Qb6 {[%clk 0:02:37]} 13. fxe5 {[%clk 0:02:49]}  Nxe5 {[%clk 0:02:33]} 14. Rxf5 {[%clk 0:02:05]}  gxf5 {[%clk 0:02:27]} 15. Qh5+ {[%clk 0:02:04]}  Ng6 {[%clk 0:02:27]} 16. Bh6 {[%clk 0:02:00]}  Bd4+ {[%clk 0:01:39]} 17. Kg2 {[%clk 0:01:54]}  O-O-O {[%clk 0:01:39]} 18. Qxf5+ {[%clk 0:01:47]}  Kb8 {[%clk 0:01:38]} 19. Ne2 {[%clk 0:00:56]}  Ne7 {[%clk 0:01:30]} 20. Qe6 {[%clk 0:00:44]}  Nxd5 {[%clk 0:01:29]} 21. Qxd5 {[%clk 0:00:45]}  Qxb2 {[%clk 0:01:19]} 22. Rc1 {[%clk 0:00:28]}  Rhe8 {[%clk 0:01:11]} 23. Qf3 {[%clk 0:00:20]}  Qxa2 {[%clk 0:01:05]} 24. Nxd4 {[%clk 0:00:19]}  cxd4 {[%clk 0:01:02]} 25. Bf4 {[%clk 0:00:19]}  Ka8 {[%clk 0:01:01]} 26. h4 {[%clk 0:00:17]}  Rc8 {[%clk 0:00:54]} 27. Qf2 {[%clk 0:00:15]}  Qd5+ {[%clk 0:00:52]} 28. Kh2 {[%clk 0:00:15]}  Re6 {[%clk 0:00:49]} 29. Rd1 {[%clk 0:00:10]}  Rce8 {[%clk 0:00:49]} 30. Rd2 {[%clk 0:00:10]}  Re1 {[%clk 0:00:49]} 31. Qg2 {[%clk 0:00:11]}  Qxg2+ {[%clk 0:00:47]} 32. Kxg2 {[%clk 0:00:11]}  R8e2+ {[%clk 0:00:47]} 33. Kf3 {[%clk 0:00:12]}  Rxd2 {[%clk 0:00:44]} 34. Bxd2 {[%clk 0:00:13]}  Rh1 {[%clk 0:00:39]} 35. g4 {[%clk 0:00:07]}  Rxh4 {[%clk 0:00:36]} 36. Bf4 {[%clk 0:00:04]}  Rh1 {[%clk 0:00:31]} 37. Bxd6 {[%clk 0:00:04]}  Rc1 {[%clk 0:00:31]} 38. Be5 {[%clk 0:00:04]}  Rxc2 {[%clk 0:00:31]} 39. Bxd4 {[%clk 0:00:05]}  a5 {[%clk 0:00:31]} 40. Be5 {[%clk 0:00:04]}  a4 {[%clk 0:00:30]} 41. d4 {[%clk 0:00:05]}  a3 {[%clk 0:00:28]} 42. d5 {[%clk 0:00:05]}  a2 {[%clk 0:00:27]} 43. d6 {[%clk 0:00:05]}  Rd2 {[%clk 0:00:25]} 44. Ke4 {[%clk 0:00:05]}  Rxd6 {[%clk 0:00:24]} 0-1


[Site "https://www.chess.com"]